fUST/lending_fUST_20250203
["ID","MTS","AMOUNT","RATE_DAILY","PERIOD"]
[351352330,1738531848837,-1875.74,0.00017397,2]
[351352332,1738531848847,-500.0,0.00017397,2]
[351352334,1738531848858,-500.0,0.00017397,2]
[351352336,1738531848868,-500.0,0.00017397,2]
[351352338,1738531848877,-500.0,0.00017397,2]
[351352340,1738531848887,-500.0,0.00017397,2]
[351352342,1738531848897,-500.0,0.00017397,2]
[351352344,1738531848907,-981.671001,0.00017417,2]
[351352346,1738531848918,-151.0,0.00017434,3]
[351352348,1738531848928,-981.671001,0.00017452,2]
[351352350,1738531848938,-297.58999872,0.00017454,2]
[351352352,1738531848948,-718.64536316,0.0001746,2]
[351352354,1738531848958,-154.0,0.0001746,2]
[351352356,1738531848968,-154.0,0.0001746,2]
[351352358,1738531848979,-154.0,0.0001746,2]
[351352360,1738531848989,-154.0,0.0001746,2]
[351352362,1738531849000,-154.0,0.0001746,2]
[351352364,1738531849009,-154.0,0.0001746,2]
[351352366,1738531849022,-154.0,0.0001746,2]
[351352368,1738531849035,-154.0,0.0001746,2]
[351352370,1738531849046,-154.0,0.0001746,2]
[351352372,1738531849056,-154.0,0.0001746,2]
[351352374,1738531849066,-154.0,0.0001746,2]
[351352376,1738531849076,-234.58,0.0001746,2]
[351352378,1738531849087,-152.01,0.0001746,2]
[351352380,1738531849097,-981.671001,0.00017486,2]
[351352383,1738531849111,-18754.4670804,0.000175,2]
[351352405,1738531849329,-299.66689558,0.000175,2]
[351352407,1738531849341,-5405.92164194,0.000175,2]
[351352409,1738531849353,-13663.27911408,0.000175,2]
[351352458,1738531849898,-7686.87363295,0.000175,2]
[351352479,1738531850195,-500.0,0.00016438,2]
[351352481,1738531850204,-131.66000005,0.00016575,2]
[351352483,1738531850215,-368.33999995,0.00016575,2]
[351352485,1738531850225,-1572.06000005,0.000175,2]
[351352487,1738531850236,-55165.000194,0.000175,2]
[351352490,1738531850251,-2721.2829,0.000175,2]
[351352730,1738531852671,10000.0,0.00018,30]
[351353105,1738531880670,2191.0,0.00020453,120]
[351353108,1738532020113,10000.0,0.00018,30]
[351353111,1738532270327,291.779239,0.00013973,2]
[351353113,1738532581031,172.855633,0.00013699,2]
[351353277,1738533032750,-500.0,0.00015753,2]
[351353279,1738533032760,-228.94800833,0.00016338,2]
[351353281,1738533032769,-4134.44078972,0.00016368,2]
[351353283,1738533032779,-300.0,0.00016437,2]
[351353284,1738533032789,-500.70490807,0.00016438,2]
[351353285,1738533032798,-501.19224088,0.00016438,2]
[351353286,1738533032808,-500.0,0.00016438,2]
[351353288,1738533032817,-500.0,0.00016438,2]
[351353289,1738533032827,-500.0,0.00016438,2]
[351353290,1738533032836,-500.0,0.00016438,2]
[351353292,1738533032846,-592.58107138,0.00016438,2]
[351353294,1738533032855,-504.91999797,0.00016438,2]
[351353296,1738533032865,-500.0,0.00016438,2]
[351353298,1738533032875,-500.0,0.00016438,2]
[351353299,1738533032884,-500.0,0.00016438,2]
[351353300,1738533032895,-500.0,0.00016438,2]
[351353301,1738533032904,-500.0,0.00016438,2]
[351353303,1738533032916,-500.0,0.00016438,2]
[351353305,1738533032926,-500.0,0.00016438,2]
[351353307,1738533032935,-500.0,0.00016438,2]
[351353308,1738533032945,-500.0,0.00016438,2]
[351353309,1738533032954,-500.0,0.00016438,2]
[351353310,1738533032964,-500.0,0.00016438,2]
[351353311,1738533032974,-500.0,0.00016438,2]
[351353313,1738533032983,-500.0,0.00016438,2]
[351353314,1738533032993,-500.0,0.00016438,2]
[351353315,1738533033003,-500.0,0.00016438,2]
[351353316,1738533033013,-294.51,0.00016438,2]
[351353317,1738533033022,-500.0,0.00016438,2]
[351353318,1738533033033,-500.0,0.00016438,2]
[351353319,1738533033043,-500.0,0.00016438,2]
[351353320,1738533033171,-500.0,0.00016438,2]
[351353321,1738533033182,-507.96991569,0.00016438,2]
[351353322,1738533033193,-500.0,0.00016438,2]
[351353323,1738533033203,-513.11,0.00016438,2]
[351353324,1738533033214,-500.0,0.00016438,2]
[351353325,1738533033224,-500.0,0.00016438,2]
[351353326,1738533033234,-500.0,0.00016438,2]
[351353327,1738533033244,-500.0,0.00016438,2]
[351353328,1738533033254,-516.86627514,0.00016438,2]
[351353329,1738533033264,-500.0,0.00016438,2]
[351353330,1738533033275,-500.0,0.00016438,2]
[351353331,1738533033295,-500.0,0.00016438,2]
[351353332,1738533033318,-500.0,0.00016438,2]
[351353333,1738533033333,-500.0,0.00016438,2]
[351353334,1738533033344,-500.0,0.00016438,2]
[351353335,1738533033355,-500.0,0.00016438,2]
[351353336,1738533033365,-500.0,0.00016438,2]
[351353337,1738533033376,-500.0,0.00016438,2]
[351353338,1738533033386,-397.29112045,0.00016438,2]
[351353339,1738533033397,-889.55,0.00016438,2]
[351353340,1738533033409,-500.0,0.00016438,2]
[351353341,1738533033419,-500.0,0.00016438,2]
[351353342,1738533033430,-500.0,0.00016438,2]
[351353343,1738533033440,-500.0,0.00016438,2]
[351353344,1738533033451,-1223.92,0.00016438,2]
[351353345,1738533033462,-500.0,0.00016438,2]
[351353346,1738533033472,-1589.05,0.00016438,2]
[351353347,1738533033482,-500.0,0.00016438,2]
[351353348,1738533033492,-6376.26,0.00016438,2]
[351353349,1738533033503,-500.0,0.00016438,2]
[351353350,1738533033513,-500.0,0.00016438,2]
[351353351,1738533033523,-500.0,0.00016438,2]
[351353352,1738533033533,-500.0,0.00016438,2]
[351353353,1738533033543,-500.0,0.00016438,2]
[351353354,1738533033552,-500.0,0.00016438,2]
[351353355,1738533033561,-1206.67,0.00016438,2]
[351353356,1738533033572,-500.0,0.00016438,2]
[351353357,1738533033582,-411.75666669,0.00016438,2]
[351353358,1738533033591,-686.13,0.00016438,2]
[351353359,1738533033602,-5895.8,0.00016438,2]
[351353360,1738533033611,-582.91,0.00016438,2]
[351353361,1738533033621,-500.0,0.00016438,2]
[351353362,1738533033631,-747.44,0.00016438,2]
[351353363,1738533033640,-500.0,0.00016438,2]
[351353364,1738533033649,-500.0,0.00016438,2]
[351353365,1738533033660,-533.28987329,0.00016438,2]
[351353366,1738533033669,-510.27740731,0.00016438,2]
[351353367,1738533033678,-6512.41,0.00016438,2]
[351353368,1738533033686,-500.0,0.00016438,2]
[351353369,1738533033695,-1707.7,0.00016438,2]
[351353370,1738533033704,-500.0,0.00016438,2]
[351353371,1738533033713,-500.0,0.00016438,2]
[351353372,1738533033723,-656.1,0.00016438,2]
[351353373,1738533033734,-1651.35,0.00016438,2]
[351353374,1738533033743,-810.14,0.00016438,2]
[351353375,1738533033752,-500.0,0.00016438,2]
[351353376,1738533033761,-500.0,0.00016438,2]
[351353377,1738533033770,-500.0,0.00016438,2]
[351353378,1738533033779,-500.0,0.00016438,2]
[351353379,1738533033789,-500.0,0.00016438,2]
[351353380,1738533033798,-4584.53,0.00016438,2]
[351353381,1738533033807,-500.0,0.00016438,2]
[351353382,1738533033816,-500.0,0.00016438,2]
[351353383,1738533033825,-500.0,0.00016438,2]
[351353384,1738533033834,-500.0,0.00016438,2]
[351353385,1738533033844,-500.0,0.00016438,2]
[351353386,1738533033854,-3401.55,0.00016438,2]
[351353387,1738533033863,-1268.4,0.00016438,2]
[351353388,1738533033873,-500.0,0.00016438,2]
[351353389,1738533033882,-500.0,0.00016438,2]
[351353390,1738533033892,-500.0,0.00016438,2]
[351353391,1738533033902,-500.0,0.00016438,2]
[351353392,1738533033913,-500.0,0.00016438,2]
[351353393,1738533033922,-500.0,0.00016438,2]
[351353394,1738533033932,-1457.12,0.00016438,2]
[351353395,1738533033941,-500.0,0.00016438,2]
[351353396,1738533033951,-1406.8,0.00016438,2]
[351353397,1738533033961,-208.69531773,0.00016438,2]
[351353398,1738533034081,-291.30468227,0.00016438,2]
[351353399,1738533034091,-458.26531773,0.00016438,2]
[351353400,1738533034121,-519.55468227,0.00016438,2]
[351353401,1738533034130,-131.28775574,0.00016438,2]
[351353402,1738533034142,-381.91326017,0.00016438,2]
[351353403,1738533034151,-103.23673983,0.00016438,2]
[351353417,1738533038501,-375.27878067,0.00016438,2]
[351353418,1738533038511,-500.0,0.00016438,2]
[351353419,1738533038520,-655.7,0.00016438,2]
[351353420,1738533038529,-637.72,0.00016438,2]
[351353421,1738533038538,-150.05840742,0.00016438,2]
[351353422,1738533038547,-500.0,0.00016438,2]
[351353423,1738533038556,-500.0,0.00016438,2]
[351353424,1738533038565,-228.94800832,0.00016561,2]
[351353425,1738533038575,-162.30647098,0.00016574,2]
[351353426,1738533038584,-500.0,0.00016574,2]
[351353427,1738533038594,-454.54175551,0.00016574,2]
[351353428,1738533038603,-500.0,0.00016574,2]
[351353430,1738533038613,-500.0,0.00016574,2]
[351353431,1738533038623,-500.0,0.00016574,2]
[351353432,1738533038632,-500.0,0.00016574,2]
[351353434,1738533038642,-500.0,0.00016574,2]
[351353435,1738533038651,-500.0,0.00016574,2]
[351353437,1738533038661,-500.0,0.00016575,2]
[351353438,1738533038671,-500.0,0.00016575,2]
[351353439,1738533038680,-500.0,0.00016575,2]
[351353440,1738533038690,-500.0,0.00016575,2]
[351353441,1738533038699,-27.39140284,0.00016575,2]
[351353442,1738533038711,-472.60859716,0.00016575,2]
[351353443,1738533038720,-500.0,0.00016575,2]
[351353444,1738533038730,-500.0,0.00016575,2]
[351353445,1738533038739,-500.0,0.00016575,2]
[351353446,1738533038748,-500.0,0.00016575,2]
[351353447,1738533038759,-500.0,0.00016575,2]
[351353448,1738533038768,-468.6364516,0.00016575,2]
[351353449,1738533038781,-31.3635484,0.00016575,2]
[351353450,1738533038790,-500.0,0.00016575,2]
[351353451,1738533038800,-500.0,0.00016575,2]
[351353452,1738533038809,-500.0,0.00016575,2]
[351353453,1738533038818,-500.0,0.00016575,2]
[351353454,1738533038827,-500.0,0.00016575,2]
[351353455,1738533038837,-513.11,0.00016575,2]
[351353456,1738533038846,-500.0,0.00016575,2]
[351353457,1738533038856,-500.0,0.00016575,2]
[351353458,1738533038865,-500.0,0.00016575,2]
[351353459,1738533038874,-500.0,0.00016575,2]
[351353460,1738533038884,-500.0,0.00016575,2]
[351353461,1738533038894,-500.0,0.00016575,2]
[351353462,1738533038903,-500.0,0.00016575,2]
[351353463,1738533038915,-500.0,0.00016575,2]
[351353464,1738533038924,-500.0,0.00016575,2]
[351353465,1738533038934,-889.55,0.00016575,2]
[351353466,1738533038943,-100.76398927,0.00016575,2]
[351353467,1738533038956,-399.23601073,0.00016575,2]
[351353468,1738533038966,-500.0,0.00016575,2]
[351353469,1738533038976,-500.0,0.00016575,2]
[351353470,1738533038986,-1223.92,0.00016575,2]
[351353471,1738533038996,-500.0,0.00016575,2]
[351353472,1738533039006,-1589.05,0.00016575,2]
[351353473,1738533039016,-6376.26,0.00016575,2]
[351353474,1738533039026,-500.0,0.00016575,2]
[351353475,1738533039036,-500.0,0.00016575,2]
[351353476,1738533039045,-580.66241935,0.00016575,2]
[351353477,1738533039055,-500.0,0.00016575,2]
[351353478,1738533039064,-500.0,0.00016575,2]
[351353479,1738533039074,-638.89387764,0.00016575,2]
[351353480,1738533039085,-567.77612236,0.00016575,2]
[351353481,1738533039095,-500.0,0.00016575,2]
[351353482,1738533039104,-534.27691078,0.00016575,2]
[351353483,1738533039116,-151.85308922,0.00016575,2]
[351353484,1738533039126,-5895.8,0.00016575,2]
[351353485,1738533039136,-582.91,0.00016575,2]
[351353486,1738533039145,-500.0,0.00016575,2]
[351353487,1738533039155,-747.44,0.00016575,2]
[351353488,1738533039172,-500.0,0.00016575,2]
[351353489,1738533039183,-6512.41,0.00016575,2]
[351353490,1738533039194,-500.0,0.00016575,2]
[351353491,1738533039205,-1707.7,0.00016575,2]
[351353492,1738533039216,-500.0,0.00016575,2]
[351353493,1738533039227,-656.1,0.00016575,2]
[351353494,1738533039237,-1651.35,0.00016575,2]
[351353495,1738533039247,-810.14,0.00016575,2]
[351353496,1738533039258,-500.0,0.00016575,2]
[351353497,1738533039269,-500.0,0.00016575,2]
[351353498,1738533039279,-4584.53,0.00016575,2]
[351353499,1738533039289,-500.0,0.00016575,2]
[351353500,1738533039299,-500.0,0.00016575,2]
[351353501,1738533039309,-500.0,0.00016575,2]
[351353502,1738533039319,-500.0,0.00016575,2]
[351353503,1738533039328,-500.0,0.00016575,2]
[351353504,1738533039338,-3401.55,0.00016575,2]
[351353505,1738533039348,-1268.4,0.00016575,2]
[351353506,1738533039358,-500.0,0.00016575,2]
[351353507,1738533039368,-500.0,0.00016575,2]
[351353508,1738533039378,-500.0,0.00016575,2]
[351353509,1738533039388,-500.0,0.00016575,2]
[351353510,1738533039397,-500.0,0.00016575,2]
[351353511,1738533039407,-500.0,0.00016575,2]
[351353512,1738533039423,-1457.12,0.00016575,2]
[351353513,1738533039539,-500.0,0.00016575,2]
[351353514,1738533039549,-1406.8,0.00016575,2]
[351353515,1738533039559,-500.0,0.00016575,2]
[351353516,1738533039569,-977.82,0.00016575,2]
[351353517,1738533039579,-500.0,0.00016575,2]
[351353518,1738533039588,-655.7,0.00016575,2]
[351353519,1738533039597,-637.72,0.00016575,2]
[351353520,1738533039607,-500.0,0.00016575,2]
[351353521,1738533039616,-500.0,0.00016575,2]
[351353522,1738533039626,-500.0,0.00016712,2]
[351353523,1738533039635,-500.0,0.00016712,2]
[351353524,1738533039646,-500.0,0.00016712,2]
[351353525,1738533039655,-500.0,0.00016712,2]
[351353526,1738533039667,-500.0,0.00016712,2]
[351353527,1738533039677,-500.0,0.00016712,2]
[351353528,1738533039687,-500.0,0.00016712,2]
[351353529,1738533039696,-500.0,0.00016712,2]
[351353530,1738533039705,-500.0,0.00016712,2]
[351353531,1738533039715,-500.0,0.00016712,2]
[351353532,1738533039725,-500.0,0.00016712,2]
[351353533,1738533039735,-500.0,0.00016712,2]
[351353534,1738533039745,-500.0,0.00016712,2]
[351353535,1738533039754,-513.11,0.00016712,2]
[351353536,1738533039765,-500.0,0.00016712,2]
[351353537,1738533039775,-500.0,0.00016712,2]
[351353538,1738533039785,-500.0,0.00016712,2]
[351353539,1738533039795,-500.0,0.00016712,2]
[351353540,1738533039805,-500.0,0.00016712,2]
[351353541,1738533039815,-500.0,0.00016712,2]
[351353542,1738533039826,-500.0,0.00016712,2]
[351353543,1738533039836,-500.0,0.00016712,2]
[351353544,1738533039845,-889.55,0.00016712,2]
[351353545,1738533039855,-460.05,0.00016712,2]
[351353546,1738533039865,-500.0,0.00016712,2]
[351353547,1738533039876,-500.0,0.00016712,2]
[351353548,1738533039886,-1223.92,0.00016712,2]
[351353549,1738533039896,-500.0,0.00016712,2]
[351353551,1738533039906,-1589.05,0.00016712,2]
[351353552,1738533039921,-6376.26,0.00016712,2]
[351353553,1738533039931,-500.0,0.00016712,2]
[351353554,1738533039941,-500.0,0.00016712,2]
[351353555,1738533039952,-500.0,0.00016712,2]
[351353556,1738533039962,-500.0,0.00016712,2]
[351353557,1738533039973,-1206.67,0.00016712,2]
[351353558,1738533039983,-686.13,0.00016712,2]
[351353559,1738533039993,-5895.8,0.00016712,2]
[351353561,1738533040004,-582.91,0.00016712,2]
[351353562,1738533040015,-500.0,0.00016712,2]
[351353563,1738533040025,-747.44,0.00016712,2]
[351353564,1738533040035,-500.0,0.00016712,2]
[351353565,1738533040045,-6512.41,0.00016712,2]
[351353566,1738533040055,-500.0,0.00016712,2]
[351353567,1738533040066,-1707.7,0.00016712,2]
[351353568,1738533040077,-500.0,0.00016712,2]
[351353569,1738533040087,-656.1,0.00016712,2]
[351353570,1738533040097,-1651.35,0.00016712,2]
[351353571,1738533040107,-810.14,0.00016712,2]
[351353572,1738533040117,-500.0,0.00016712,2]
[351353573,1738533040127,-500.0,0.00016712,2]
[351353574,1738533040136,-4584.53,0.00016712,2]
[351353575,1738533040146,-500.0,0.00016712,2]
[351353576,1738533040155,-500.0,0.00016712,2]
[351353577,1738533040168,-500.0,0.00016712,2]
[351353578,1738533040178,-500.0,0.00016712,2]
[351353579,1738533040189,-3401.55,0.00016712,2]
[351353580,1738533040199,-1268.4,0.00016712,2]
[351353581,1738533040209,-500.0,0.00016712,2]
[351353583,1738533040219,-500.0,0.00016712,2]
[351353585,1738533040229,-500.0,0.00016712,2]
[351353586,1738533040238,-500.0,0.00016712,2]
[351353587,1738533040248,-500.0,0.00016712,2]
[351353588,1738533040258,-1457.12,0.00016712,2]
[351353589,1738533040268,-1406.8,0.00016712,2]
[351353590,1738533040279,-500.0,0.00016712,2]
[351353591,1738533040290,-977.82,0.00016712,2]
[351353593,1738533040300,-500.0,0.00016712,2]
[351353595,1738533040311,-655.7,0.00016712,2]
[351353596,1738533040321,-637.72,0.00016712,2]
[351353598,1738533040331,-500.0,0.00016712,2]
[351353600,1738533040340,-228.94800832,0.00016784,2]
[351353602,1738533040350,-500.0,0.00016848,2]
[351353604,1738533040360,-220.33741932,0.00016848,2]
[351353605,1738533040370,-511.36437695,0.00016849,2]
[351353606,1738533040380,-324.18301711,0.00016849,2]
[351353607,1738533040390,-500.0,0.00016849,2]
[351353608,1738533040399,-500.0,0.00016849,2]
[351353609,1738533040408,-570.28,0.00016849,2]
[351353611,1738533040425,-500.0,0.00016849,2]
[351353613,1738533040435,-500.0,0.00016849,2]
[351353614,1738533040444,-500.0,0.00016849,2]
[351353615,1738533040454,-500.0,0.00016849,2]
[351353617,1738533040465,-500.0,0.00016849,2]
[351353618,1738533040474,-271.98,0.00016849,2]
[351353619,1738533040484,-500.0,0.00016849,2]
[351353620,1738533040494,-500.0,0.00016849,2]
[351353622,1738533040503,-513.11,0.00016849,2]
[351353623,1738533040513,-500.0,0.00016849,2]
[351353625,1738533040523,-500.0,0.00016849,2]
[351353626,1738533040533,-500.0,0.00016849,2]
[351353628,1738533040543,-500.0,0.00016849,2]
[351353630,1738533040553,-500.0,0.00016849,2]
[351353632,1738533040563,-889.55,0.00016849,2]
[351353634,1738533040573,-500.0,0.00016849,2]
[351353636,1738533040583,-1223.92,0.00016849,2]
[351353637,1738533040592,-500.0,0.00016849,2]
[351353638,1738533040602,-1589.05,0.00016849,2]
[351353640,1738533040612,-6376.26,0.00016849,2]
[351353641,1738533040622,-500.0,0.00016849,2]
[351353642,1738533040631,-500.0,0.00016849,2]
[351353643,1738533040640,-500.0,0.00016849,2]
[351353644,1738533040651,-500.0,0.00016849,2]
[351353645,1738533040661,-1206.67,0.00016849,2]
[351353646,1738533040672,-686.13,0.00016849,2]
[351353647,1738533040682,-5895.8,0.00016849,2]
[351353648,1738533040691,-582.91,0.00016849,2]
[351353649,1738533040701,-500.0,0.00016849,2]
[351353650,1738533040711,-747.44,0.00016849,2]
[351353651,1738533040721,-425.74,0.00016849,2]
[351353652,1738533040731,-6512.41,0.00016849,2]
[351353653,1738533040740,-500.0,0.00016849,2]
[351353654,1738533040749,-1707.7,0.00016849,2]
[351353655,1738533040758,-500.0,0.00016849,2]
[351353656,1738533040768,-656.1,0.00016849,2]
[351353657,1738533040778,-1651.35,0.00016849,2]
[351353658,1738533040788,-810.14,0.00016849,2]
[351353659,1738533040798,-500.0,0.00016849,2]
[351353660,1738533040810,-4584.53,0.00016849,2]
[351353661,1738533040820,-500.0,0.00016849,2]
[351353662,1738533040829,-500.0,0.00016849,2]
[351353663,1738533040839,-500.0,0.00016849,2]
[351353665,1738533040848,-3401.55,0.00016849,2]
[351353667,1738533040858,-1268.4,0.00016849,2]
[351353669,1738533040868,-500.0,0.00016849,2]
[351353671,1738533040878,-500.0,0.00016849,2]
[351353673,1738533040887,-500.0,0.00016849,2]
[351353675,1738533040897,-500.0,0.00016849,2]
[351353676,1738533040907,-1457.12,0.00016849,2]
[351353677,1738533040920,-1406.8,0.00016849,2]
[351353678,1738533040929,-500.0,0.00016849,2]
[351353679,1738533040940,-977.82,0.00016849,2]
[351353680,1738533040949,-500.0,0.00016849,2]
[351353681,1738533040958,-655.7,0.00016849,2]
[351353682,1738533040968,-637.72,0.00016849,2]
[351353683,1738533040977,-157.08218412,0.00016849,2]
[351353684,1738533040987,-415.3025426,0.00016861,2]
[351353685,1738533040997,-487.68729175,0.00016896,2]
[351353686,1738533041007,-154.721,0.000169,2]
[351353687,1738533041017,-500.0,0.00016986,2]
[351353688,1738533041026,-500.0,0.00016986,2]
[351353689,1738533041036,-500.0,0.00016986,2]
[351353690,1738533041045,-500.0,0.00016986,2]
[351353691,1738533041054,-586.64657796,0.00016986,2]
[351353692,1738533041063,-513.11,0.00016986,2]
[351353693,1738533041073,-500.0,0.00016986,2]
[351353694,1738533041083,-500.0,0.00016986,2]
[351353695,1738533041092,-175.99,0.00016986,2]
[351353696,1738533041102,-500.0,0.00016986,2]
[351353697,1738533041112,-889.55,0.00016986,2]
[351353698,1738533041122,-500.0,0.00016986,2]
[351353699,1738533041131,-1223.92,0.00016986,2]
[351353700,1738533041141,-500.0,0.00016986,2]
[351353701,1738533041151,-1589.05,0.00016986,2]
[351353702,1738533041160,-4018.50127782,0.00016986,2]
[351353703,1738533041176,-2357.75872218,0.00016986,2]
[351353704,1738533041186,-500.0,0.00016986,2]
[351353705,1738533041196,-500.0,0.00016986,2]
[351353706,1738533041205,-500.0,0.00016986,2]
[351353707,1738533041215,-1206.67,0.00016986,2]
[351353708,1738533041224,-686.13,0.00016986,2]
[351353709,1738533041233,-5895.8,0.00016986,2]
[351353710,1738533041243,-582.91,0.00016986,2]
[351353711,1738533041252,-328.1,0.00016986,2]
[351353712,1738533041261,-747.44,0.00016986,2]
[351353713,1738533041271,-5549.00567298,0.00016986,2]
[351353714,1738533041283,-601.33373676,0.00016986,2]
[351353715,1738533041386,-362.07059026,0.00016986,2]
[351353716,1738533041396,-500.0,0.00016986,2]
[351353717,1738533041405,-1707.7,0.00016986,2]
[351353718,1738533041416,-500.0,0.00016986,2]
[351353719,1738533041425,-522.4034898,0.00016986,2]
[351353720,1738533041440,-133.6965102,0.00016986,2]
[351353721,1738533041449,-935.34242555,0.00016986,2]
[351353722,1738533041461,-716.00757445,0.00016986,2]
[351353723,1738533041471,-810.14,0.00016986,2]
[351353724,1738533041480,-4584.53,0.00016986,2]
[351353725,1738533041490,-500.0,0.00016986,2]
[351353726,1738533041500,-500.0,0.00016986,2]
[351353727,1738533041512,-500.0,0.00016986,2]
[351353728,1738533041521,-2081.02166895,0.00016986,2]
[351353729,1738533041534,-1320.52833105,0.00016986,2]
[351353730,1738533041543,-1268.4,0.00016986,2]
[351353731,1738533041553,-610.18,0.00016986,2]
[351353732,1738533041563,-500.0,0.00016986,2]
[351353733,1738533041573,-1457.12,0.00016986,2]
[351353734,1738533041582,-774.86035348,0.00016986,2]
[351353735,1738533041595,-492.5244137,0.00016986,2]
[351353736,1738533041607,-139.41523282,0.00016986,2]
[351353737,1738533041616,-977.82,0.00016986,2]
[351353738,1738533041626,-500.0,0.00016986,2]
[351353739,1738533041636,-655.7,0.00016986,2]
[351353740,1738533041645,-637.72,0.00016986,2]
[351353741,1738533041655,-228.94800832,0.00017007,2]
[351353742,1738533041667,-1790.86071561,0.00017113,2]
[351353743,1738533041677,-156.95,0.00017123,2]
[351353744,1738533041687,-500.0,0.00017123,2]
[351353745,1738533041697,-597.1,0.00017123,2]
[351353746,1738533041707,-500.0,0.00017123,2]
[351353747,1738533041716,-513.11,0.00017123,2]
[351353748,1738533041726,-500.0,0.00017123,2]
[351353749,1738533041735,-500.0,0.00017123,2]
[351353750,1738533041745,-500.0,0.00017123,2]
[351353751,1738533041843,-889.55,0.00017123,2]
[351353752,1738533041853,-1223.92,0.00017123,2]
[351353753,1738533041863,-500.0,0.00017123,2]
[351353754,1738533041873,-1589.05,0.00017123,2]
[351353755,1738533041883,-6376.26,0.00017123,2]
[351353756,1738533041893,-500.0,0.00017123,2]
[351353757,1738533041903,-500.0,0.00017123,2]
[351353758,1738533041912,-500.0,0.00017123,2]
[351353759,1738533041925,-1206.67,0.00017123,2]
[351353760,1738533041935,-686.13,0.00017123,2]
[351353761,1738533041944,-5895.8,0.00017123,2]
[351353762,1738533041954,-582.91,0.00017123,2]
[351353763,1738533041964,-747.44,0.00017123,2]
[351353764,1738533041974,-6512.41,0.00017123,2]
[351353765,1738533041984,-500.0,0.00017123,2]
[351353766,1738533041994,-1707.7,0.00017123,2]
[351353767,1738533042004,-500.0,0.00017123,2]
[351353768,1738533042014,-656.1,0.00017123,2]
[351353769,1738533042024,-1651.35,0.00017123,2]
[351353770,1738533042034,-810.14,0.00017123,2]
[351353771,1738533042045,-4584.53,0.00017123,2]
[351353772,1738533042055,-162.26,0.00017123,2]
[351353773,1738533042065,-500.0,0.00017123,2]
[351353774,1738533042074,-500.0,0.00017123,2]
[351353775,1738533042084,-3401.55,0.00017123,2]
[351353776,1738533042094,-1268.4,0.00017123,2]
[351353777,1738533042103,-500.0,0.00017123,2]
[351353778,1738533042113,-1457.12,0.00017123,2]
[351353779,1738533042123,-1406.8,0.00017123,2]
[351353780,1738533042132,-977.82,0.00017123,2]
[351353781,1738533042142,-500.0,0.00017123,2]
[351353782,1738533042151,-655.7,0.00017123,2]
[351353783,1738533042160,-637.72,0.00017123,2]
[351353784,1738533042174,-169.20508,0.00017184,5]
[351353785,1738533042184,-5563.37812796,0.00017195,2]
[351353961,1738533045015,-557.2958057,0.00016438,2]
[351353963,1738533045025,-1382.7791943,0.00017195,2]
[351353965,1738533045037,-547.58,0.00017195,2]
[351353967,1738533045048,-1004.94601028,0.00017195,2]